[Event "Late-Titled-Tuesday-Blitz-September-26-2023"]
[Site "Chess.com"]
[Date "2023.09.26"]
[Round "1"]
[White "Herman-NY"]
[Black "dropstoneDP"]
[Result "0-1"]
[WhiteElo "2503"]
[BlackElo "3108"]
[TimeControl "180+1"]
[EndTime "14:09:12 PDT"]
[Termination "dropstoneDP won by resignation"]

1. e4 {[%clk 0:03:00.9]} 1... e5 {[%clk 0:02:41.3]} 2. Nf3 {[%clk 0:03:00.4]}
2... Nf6 {[%clk 0:02:38.5]} 3. Nxe5 {[%clk 0:03:00.5]} 3... d6 {[%clk
0:02:38.9]} 4. Nd3 {[%clk 0:03:00.3]} 4... Nxe4 {[%clk 0:02:39.3]} 5. Qe2 {[%clk
0:03:00.8]} 5... Qe7 {[%clk 0:02:39]} 6. Nf4 {[%clk 0:03:01.2]} 6... Nc6 {[%clk
0:02:39.3]} 7. c3 {[%clk 0:03:01.4]} 7... Nf6 {[%clk 0:02:39.3]} 8. d4 {[%clk
0:03:01]} 8... g5 {[%clk 0:02:39.1]} 9. Nd3 {[%clk 0:02:56]} 9... Rg8 {[%clk
0:02:36.8]} 10. Na3 {[%clk 0:02:39.3]} 10... Bf5 {[%clk 0:02:35.7]} 11. Qxe7+
{[%clk 0:02:35.8]} 11... Nxe7 {[%clk 0:02:35.2]} 12. h4 {[%clk 0:02:24.1]} 12...
h6 {[%clk 0:02:34.5]} 13. hxg5 {[%clk 0:02:22]} 13... hxg5 {[%clk 0:02:35.4]}
14. Nb5 {[%clk 0:01:57]} 14... Kd7 {[%clk 0:02:31.8]} 15. c4 {[%clk 0:01:38.6]}
15... Nc6 {[%clk 0:02:18.1]} 16. d5 {[%clk 0:01:31.7]} 16... Re8+ {[%clk
0:02:10.5]} 17. Be3 {[%clk 0:01:25.4]} 17... Ne5 {[%clk 0:02:05.7]} 18. Nxe5+
{[%clk 0:01:25.3]} 18... Rxe5 {[%clk 0:02:06.2]} 19. O-O-O {[%clk 0:01:02.9]}
19... a6 {[%clk 0:02:06]} 20. Nc3 {[%clk 0:00:59]} 20... Ne4 {[%clk 0:02:03.2]}
21. Bd4 {[%clk 0:00:51]} 21... Nxc3 {[%clk 0:01:58.9]} 22. Bxc3 {[%clk
0:00:51.9]} 22... Re8 {[%clk 0:01:58.1]} 23. Bd3 {[%clk 0:00:47]} 23... Bxd3
{[%clk 0:01:52.9]} 24. Rxd3 {[%clk 0:00:47.9]} 24... f5 {[%clk 0:01:41.9]} 25.
Rh7+ {[%clk 0:00:37.5]} 25... Re7 {[%clk 0:01:41.3]} 26. Rdh3 {[%clk 0:00:37.2]}
26... g4 {[%clk 0:01:39.4]} 27. Rxe7+ {[%clk 0:00:36.9]} 27... Bxe7 {[%clk
0:01:38.4]} 28. Rh7 {[%clk 0:00:37.8]} 28... Ke8 {[%clk 0:01:38.4]} 29. Kd2
{[%clk 0:00:34]} 29... Rf8 {[%clk 0:01:33.2]} 30. Kd3 {[%clk 0:00:31]} 30... Rf7
{[%clk 0:01:32.5]} 31. Rxf7 {[%clk 0:00:29.6]} 31... Kxf7 {[%clk 0:01:33.4]} 32.
a4 {[%clk 0:00:28.5]} 32... Bf6 {[%clk 0:01:07.4]} 33. a5 {[%clk 0:00:28.6]}
33... Be7 {[%clk 0:00:27.4]} 34. b4 {[%clk 0:00:27.2]} 34... Bh4 {[%clk
0:00:22.7]} 35. Bd4 {[%clk 0:00:25.6]} 35... Bd8 {[%clk 0:00:22.5]} 36. Ba7
{[%clk 0:00:09.6]} 36... Ke8 {[%clk 0:00:20.5]} 37. Bd4 {[%clk 0:00:09.4]} 37...
Kd7 {[%clk 0:00:20.2]} 38. Ke3 {[%clk 0:00:08.4]} 38... Bg5+ {[%clk 0:00:20.2]}
39. Kd3 {[%clk 0:00:08.8]} 39... c6 {[%clk 0:00:18.8]} 40. f3 {[%clk 0:00:07.3]}
40... gxf3 {[%clk 0:00:17.4]} 41. gxf3 {[%clk 0:00:08.2]} 41... Bd8 {[%clk
0:00:16.1]} 42. Bc3 {[%clk 0:00:06.7]} 42... Bh4 {[%clk 0:00:14.2]} 43. Ke3
{[%clk 0:00:05.8]} 43... Bg5+ {[%clk 0:00:14.4]} 44. Kd3 {[%clk 0:00:06.4]}
44... Bd8 {[%clk 0:00:09.5]} 45. Ke3 {[%clk 0:00:06.5]} 45... Bg5+ {[%clk
0:00:09.5]} 46. Kd3 {[%clk 0:00:06.8]} 46... Bh4 {[%clk 0:00:09]} 47. Ke3 {[%clk
0:00:06.7]} 47... Bg3 {[%clk 0:00:07.4]} 48. Kd3 {[%clk 0:00:06]} 48... Bf4
{[%clk 0:00:07.2]} 49. Bd4 {[%clk 0:00:05.8]} 49... Bg3 {[%clk 0:00:06.9]} 50.
Ke3 {[%clk 0:00:05.7]} 50... Be1 {[%clk 0:00:06.5]} 51. Bb6 {[%clk 0:00:01.7]}
51... Bxb4 {[%clk 0:00:02.5]} 52. Kf4 {[%clk 0:00:02.2]} 52... cxd5 {[%clk
0:00:03.1]} 53. cxd5 {[%clk 0:00:02.5]} 53... Ke7 {[%clk 0:00:01.6]} 54. Kxf5
{[%clk 0:00:02.7]} 54... Kf7 {[%clk 0:00:02.2]} 55. Bc7 {[%clk 0:00:02.4]} 55...
Ke7 {[%clk 0:00:02.4]} 56. f4 {[%clk 0:00:02.7]} 56... Kf7 {[%clk 0:00:02.9]}
57. Kg5 {[%clk 0:00:02.7]} 57... Bc5 {[%clk 0:00:02.5]} 58. f5 {[%clk
0:00:03.1]} 58... Bb4 {[%clk 0:00:03]} 59. Bb8 {[%clk 0:00:02.5]} 59... Bxa5
{[%clk 0:00:02.4]} 60. Bxd6 {[%clk 0:00:02.9]} 60... Bd2+ {[%clk 0:00:02.5]} 61.
Kg4 {[%clk 0:00:02.2]} 61... a5 {[%clk 0:00:03]} 62. Bc5 {[%clk 0:00:02.7]}
62... b5 {[%clk 0:00:03]} 63. d6 {[%clk 0:00:03.3]} 63... Ke8 {[%clk 0:00:01.9]}
64. f6 {[%clk 0:00:03.3]} 64... Bh6 {[%clk 0:00:02.2]} 65. Kf5 {[%clk
0:00:04.2]} 65... Kd7 {[%clk 0:00:02]} 66. Kg6 {[%clk 0:00:04.5]} 66... Bf8
{[%clk 0:00:02.6]} 67. Kf7 {[%clk 0:00:04.7]} 67... Bh6 {[%clk 0:00:03.2]} 68.
Kg6 {[%clk 0:00:04.9]} 68... Bf8 {[%clk 0:00:03.3]} 69. Kf7 {[%clk 0:00:05.5]}
69... Bh6 {[%clk 0:00:02.7]} 70. Kg8 {[%clk 0:00:06.2]} 70... b4 {[%clk
0:00:02.2]} 71. f7 {[%clk 0:00:06.8]} 71... b3 {[%clk 0:00:02]} 72. Be3 {[%clk
0:00:07.5]} 72... Bf8 {[%clk 0:00:01.3]} 73. Kxf8 {[%clk 0:00:07.7]} 73... b2
{[%clk 0:00:01.9]} 74. Kg8 {[%clk 0:00:08.6]} 74... b1=Q {[%clk 0:00:02.6]} 75.
f8=Q {[%clk 0:00:09.5]} 75... Qb3+ {[%clk 0:00:01.6]} 76. Kh7 {[%clk 0:00:09.2]}
76... Qxe3 {[%clk 0:00:01.5]} 77. Qf7+ {[%clk 0:00:09.6]} 77... Kxd6 {[%clk
0:00:01.9]} 78. Qf6+ {[%clk 0:00:09.6]} 78... Qe6 {[%clk 0:00:02.4]} 79. Qd4+
{[%clk 0:00:08.9]} 79... Qd5 {[%clk 0:00:03]} 80. Qb6+ {[%clk 0:00:09.2]} 80...
Ke5 {[%clk 0:00:03.4]} 81. Qc7+ {[%clk 0:00:09]} 81... Ke4 {[%clk 0:00:03.1]}
82. Qc2+ {[%clk 0:00:07.7]} 82... Qd3 {[%clk 0:00:02.7]} 83. Qa4+ {[%clk
0:00:07.8]} 83... Ke3+ {[%clk 0:00:02.8]} 84. Kg7 {[%clk 0:00:08.2]} 84... Qd4+
{[%clk 0:00:03.1]} 0-1

[Event "Late-Titled-Tuesday-Blitz-September-26-2023"]
[Site "Chess.com"]
[Date "2023.09.26"]
[Round "1"]
[White "Jarming"]
[Black "HackWithBlack"]
[Result "0-1"]
[WhiteElo "2647"]
[BlackElo "2379"]
[TimeControl "180+1"]
[EndTime "14:09:49 PDT"]
[Termination "HackWithBlack won by resignation"]

1. e4 {[%clk 0:02:59.7]} 1... c6 {[%clk 0:03:00]} 2. d4 {[%clk 0:02:59]} 2... d5
{[%clk 0:03:00.4]} 3. e5 {[%clk 0:02:59.9]} 3... Bf5 {[%clk 0:02:59.6]} 4. h4
{[%clk 0:02:59.9]} 4... h5 {[%clk 0:02:59.1]} 5. c4 {[%clk 0:02:59.8]} 5... e6
{[%clk 0:02:58]} 6. Nc3 {[%clk 0:03:00.2]} 6... a6 {[%clk 0:02:53.5]} 7. Bg5
{[%clk 0:02:55.5]} 7... Qb6 {[%clk 0:02:44.1]} 8. Qd2 {[%clk 0:02:50.5]} 8...
Nd7 {[%clk 0:02:37.9]} 9. Nf3 {[%clk 0:02:46.9]} 9... Be4 {[%clk 0:02:31.6]} 10.
Be2 {[%clk 0:02:34.8]} 10... Bxf3 {[%clk 0:02:30.3]} 11. Bxf3 {[%clk 0:02:34]}
11... dxc4 {[%clk 0:02:27.3]} 12. O-O {[%clk 0:02:28.9]} 12... Ne7 {[%clk
0:02:24.9]} 13. Rad1 {[%clk 0:02:20.8]} 13... Nf5 {[%clk 0:02:19.3]} 14. Ne4
{[%clk 0:02:15.8]} 14... Bb4 {[%clk 0:02:14.6]} 15. Qe2 {[%clk 0:02:13.7]} 15...
Nxd4 {[%clk 0:02:09.3]} 16. Rxd4 {[%clk 0:02:03.4]} 16... Qxd4 {[%clk
0:02:08.5]} 17. Rd1 {[%clk 0:01:54]} 17... Qxe5 {[%clk 0:01:51.3]} 18. Bxh5
{[%clk 0:01:31.1]} 18... Rxh5 {[%clk 0:01:33.1]} 19. f4 {[%clk 0:01:13.5]} 19...
Qf5 {[%clk 0:01:12.1]} 20. Qxh5 {[%clk 0:00:57.5]} 20... Qxe4 {[%clk 0:01:11.9]}
21. Rxd7 {[%clk 0:00:50]} 21... Kxd7 {[%clk 0:01:06.3]} 22. Qxf7+ {[%clk
0:00:50.1]} 22... Kc8 {[%clk 0:01:06]} 23. Qe8+ {[%clk 0:00:47.8]} 23... Kc7
{[%clk 0:01:05.9]} 24. Qxa8 {[%clk 0:00:48.4]} 24... Qd4+ {[%clk 0:00:43.6]} 25.
Kh2 {[%clk 0:00:46.8]} 25... Bc5 {[%clk 0:00:42.3]} 26. Qe8 {[%clk 0:00:45.3]}
26... Qg1+ {[%clk 0:00:38.6]} 27. Kh3 {[%clk 0:00:44.2]} 27... Qh1+ {[%clk
0:00:37.2]} 28. Kg3 {[%clk 0:00:44.1]} 28... Qe1+ {[%clk 0:00:36.9]} 29. Kg4
{[%clk 0:00:41.9]} 29... Qd1+ {[%clk 0:00:36.9]} 30. Kg3 {[%clk 0:00:39.8]}
30... Qd3+ {[%clk 0:00:36.8]} 31. Kg4 {[%clk 0:00:38.5]} 31... Qd1+ {[%clk
0:00:36.4]} 32. Kg3 {[%clk 0:00:38.5]} 32... Qe1+ {[%clk 0:00:32.1]} 33. Kg4
{[%clk 0:00:38.7]} 33... Qe2+ {[%clk 0:00:29]} 34. Kh3 {[%clk 0:00:38.6]} 34...
Qe3+ {[%clk 0:00:25.5]} 35. Kg4 {[%clk 0:00:38.7]} 35... Qe2+ {[%clk 0:00:25.3]}
36. Kh3 {[%clk 0:00:38.8]} 36... Kb6 {[%clk 0:00:20.9]} 37. Qf7 {[%clk
0:00:31.6]} 37... Qxb2 {[%clk 0:00:16.7]} 38. Bd8+ {[%clk 0:00:28.3]} 38... Ka7
{[%clk 0:00:16.9]} 39. Bc7 {[%clk 0:00:25.4]} 39... Bb6 {[%clk 0:00:13.4]} 40.
Be5 {[%clk 0:00:25.1]} 40... Qd2 {[%clk 0:00:09.7]} 41. Qxe6 {[%clk 0:00:20.5]}
41... c3 {[%clk 0:00:09]} 42. Qc8 {[%clk 0:00:19.7]} 42... a5 {[%clk 0:00:03.1]}
43. a4 {[%clk 0:00:17.3]} 43... Ka6 {[%clk 0:00:02.6]} 44. Qa8+ {[%clk
0:00:16.4]} 44... Ba7 {[%clk 0:00:02.9]} 45. Qg8 {[%clk 0:00:15.7]} 45... Qe3+
{[%clk 0:00:02.8]} 46. g3 {[%clk 0:00:15.8]} 46... Qd3 {[%clk 0:00:03.1]} 47.
Qxg7 {[%clk 0:00:14.2]} 47... c2 {[%clk 0:00:03.4]} 48. Bb2 {[%clk 0:00:15.1]}
48... Be3 {[%clk 0:00:02.8]} 49. Qf6 {[%clk 0:00:13.6]} 49... c1=Q {[%clk
0:00:03.1]} 50. Bxc1 {[%clk 0:00:13.2]} 50... Qf1+ {[%clk 0:00:03.5]} 51. Kg4
{[%clk 0:00:13.4]} 51... Qxc1 {[%clk 0:00:04.4]} 52. h5 {[%clk 0:00:14.3]} 52...
Qd1+ {[%clk 0:00:04.5]} 53. Kg5 {[%clk 0:00:14.7]} 53... Bf2 {[%clk 0:00:04.1]}
54. g4 {[%clk 0:00:15]} 54... Be3 {[%clk 0:00:04.2]} 55. h6 {[%clk 0:00:14.9]}
55... Qd5+ {[%clk 0:00:04.9]} 56. Kg6 {[%clk 0:00:14.5]} 56... Bd4 {[%clk
0:00:05.1]} 57. Qf5 {[%clk 0:00:14.3]} 57... Qg8+ {[%clk 0:00:05.4]} 58. Kh5
{[%clk 0:00:13.7]} 58... Qe8+ {[%clk 0:00:05.8]} 59. Qg6 {[%clk 0:00:09.6]}
59... Qe2 {[%clk 0:00:05.4]} 60. h7 {[%clk 0:00:07.8]} 60... Qh2+ {[%clk
0:00:05.3]} 61. Kg5 {[%clk 0:00:08.3]} 61... Be3 {[%clk 0:00:03.5]} 62. Qf7
{[%clk 0:00:08.7]} 62... Bxf4+ {[%clk 0:00:03.1]} 63. Qxf4 {[%clk 0:00:07.2]}
63... Qxh7 {[%clk 0:00:03.1]} 64. Qc4+ {[%clk 0:00:07.7]} 64... Ka7 {[%clk
0:00:03.5]} 65. Qc5+ {[%clk 0:00:08.3]} 65... Ka6 {[%clk 0:00:04]} 66. Qc4+
{[%clk 0:00:08.8]} 66... Ka7 {[%clk 0:00:04]} 67. Qc5+ {[%clk 0:00:08.1]} 67...
Ka6 {[%clk 0:00:04.3]} 68. Kf4 {[%clk 0:00:06.1]} 68... Qf7+ {[%clk 0:00:04.5]}
69. Kg3 {[%clk 0:00:05.9]} 69... Qg6 {[%clk 0:00:04.9]} 70. g5 {[%clk
0:00:05.5]} 70... b5 {[%clk 0:00:05.3]} 71. axb5+ {[%clk 0:00:05.1]} 71... cxb5
{[%clk 0:00:06.2]} 72. Qe5 {[%clk 0:00:04.3]} 72... a4 {[%clk 0:00:05.7]} 73.
Kf4 {[%clk 0:00:02.2]} 73... Qf7+ {[%clk 0:00:05.3]} 74. Qf5 {[%clk 0:00:02]}
74... Qc4+ {[%clk 0:00:05]} 75. Kg3 {[%clk 0:00:01.8]} 75... a3 {[%clk
0:00:05.1]} 76. g6 {[%clk 0:00:01.8]} 76... a2 {[%clk 0:00:05.4]} 77. Qf6+
{[%clk 0:00:02.3]} 77... Ka5 {[%clk 0:00:05.3]} 78. g7 {[%clk 0:00:03.2]} 78...
Qb3+ {[%clk 0:00:05.2]} 79. Kg4 {[%clk 0:00:03.8]} 79... Qc4+ {[%clk 0:00:04.8]}
80. Kg5 {[%clk 0:00:04.3]} 80... Qc1+ {[%clk 0:00:04.3]} 81. Kg6 {[%clk
0:00:04.5]} 81... Qg1+ {[%clk 0:00:04.5]} 82. Kh7 {[%clk 0:00:03.9]} 82... a1=Q
{[%clk 0:00:04.8]} 83. Qxa1+ {[%clk 0:00:03.1]} 83... Qxa1 {[%clk 0:00:05.7]}
84. g8=Q {[%clk 0:00:04]} 84... Qh1+ {[%clk 0:00:05.6]} 85. Kg7 {[%clk 0:00:04]}
85... Qg1+ {[%clk 0:00:06.5]} 86. Kf8 {[%clk 0:00:04.9]} 86... Qxg8+ {[%clk
0:00:07.3]} 87. Kxg8 {[%clk 0:00:05.8]} 87... b4 {[%clk 0:00:08.2]} 0-1

[Event "Late-Titled-Tuesday-Blitz-September-26-2023"]
[Site "Chess.com"]
[Date "2023.09.26"]
[Round "1"]
[White "nitpicker"]
[Black "Misticpikachu"]
[Result "1/2-1/2"]
[WhiteElo "2249"]
[BlackElo "2561"]
[TimeControl "180+1"]
[EndTime "14:10:19 PDT"]
[Termination "Game drawn by 50-move rule"]

1. d4 {[%clk 0:03:00.9]} 1... d5 {[%clk 0:02:58.6]} 2. c4 {[%clk 0:03:00.1]}
2... e6 {[%clk 0:02:59]} 3. Nf3 {[%clk 0:02:59.4]} 3... Nf6 {[%clk 0:02:59.4]}
4. g3 {[%clk 0:02:57.5]} 4... Be7 {[%clk 0:02:59.6]} 5. Bg2 {[%clk 0:02:56.3]}
5... O-O {[%clk 0:03:00]} 6. O-O {[%clk 0:02:55.5]} 6... dxc4 {[%clk 0:03:00]}
7. Ne5 {[%clk 0:02:55.7]} 7... Nc6 {[%clk 0:02:59.7]} 8. Bxc6 {[%clk 0:02:55.7]}
8... bxc6 {[%clk 0:02:59.5]} 9. Nxc6 {[%clk 0:02:56.4]} 9... Qe8 {[%clk
0:03:00]} 10. Nxe7+ {[%clk 0:02:57]} 10... Qxe7 {[%clk 0:03:00.9]} 11. Qa4
{[%clk 0:02:56.6]} 11... e5 {[%clk 0:03:01.3]} 12. dxe5 {[%clk 0:02:56]} 12...
Qxe5 {[%clk 0:03:02.2]} 13. Qxc4 {[%clk 0:02:55.6]} 13... Be6 {[%clk 0:03:00.9]}
14. Qd3 {[%clk 0:02:47.5]} 14... Rad8 {[%clk 0:02:42.5]} 15. Qe3 {[%clk
0:02:47.4]} 15... Qh5 {[%clk 0:02:38.1]} 16. f3 {[%clk 0:02:47.7]} 16... Rfe8
{[%clk 0:02:33.1]} 17. Qf2 {[%clk 0:02:44.6]} 17... Nd5 {[%clk 0:02:23.1]} 18.
Bd2 {[%clk 0:02:31.6]} 18... Nb6 {[%clk 0:01:54.2]} 19. Bf4 {[%clk 0:02:07.8]}
19... Qb5 {[%clk 0:01:42.4]} 20. e4 {[%clk 0:01:20.5]} 20... Rd3 {[%clk
0:01:15.6]} 21. Nc3 {[%clk 0:01:13.2]} 21... Qd7 {[%clk 0:00:57]} 22. Rfd1
{[%clk 0:01:05.4]} 22... c6 {[%clk 0:00:34]} 23. Rxd3 {[%clk 0:01:01.1]} 23...
Qxd3 {[%clk 0:00:34.9]} 24. Rd1 {[%clk 0:00:58.6]} 24... Qc4 {[%clk 0:00:34]}
25. Qe2 {[%clk 0:00:54]} 25... Qxe2 {[%clk 0:00:32.7]} 26. Nxe2 {[%clk
0:00:53.6]} 26... Bxa2 {[%clk 0:00:33.3]} 27. Ra1 {[%clk 0:00:53.5]} 27... Bc4
{[%clk 0:00:33.3]} 28. Nd4 {[%clk 0:00:53.4]} 28... c5 {[%clk 0:00:25.7]} 29.
Nf5 {[%clk 0:00:46.8]} 29... Ra8 {[%clk 0:00:16.2]} 30. Be3 {[%clk 0:00:36.7]}
30... Nd7 {[%clk 0:00:14.2]} 31. Nd6 {[%clk 0:00:34.8]} 31... Be6 {[%clk
0:00:13.4]} 32. Nb7 {[%clk 0:00:34.8]} 32... h6 {[%clk 0:00:08.8]} 33. Nxc5
{[%clk 0:00:33.2]} 33... Nxc5 {[%clk 0:00:09.7]} 34. Bxc5 {[%clk 0:00:33]} 34...
a6 {[%clk 0:00:10.4]} 35. b4 {[%clk 0:00:32.5]} 35... Bc4 {[%clk 0:00:10.5]} 36.
Rd1 {[%clk 0:00:30.6]} 36... Be2 {[%clk 0:00:10.3]} 37. Ra1 {[%clk 0:00:26.4]}
37... Bxf3 {[%clk 0:00:10.3]} 38. b5 {[%clk 0:00:26.4]} 38... Bxe4 {[%clk
0:00:08.1]} 39. bxa6 {[%clk 0:00:26.3]} 39... f6 {[%clk 0:00:05.5]} 40. a7
{[%clk 0:00:26.3]} 40... f5 {[%clk 0:00:05.6]} 41. Ra4 {[%clk 0:00:24.4]} 41...
Kf7 {[%clk 0:00:05.3]} 42. Ra6 {[%clk 0:00:22.2]} 42... Bd3 {[%clk 0:00:04.1]}
43. Rc6 {[%clk 0:00:19.8]} 43... Be4 {[%clk 0:00:04.5]} 44. Rc7+ {[%clk
0:00:19.2]} 44... Ke6 {[%clk 0:00:02.5]} 45. Rxg7 {[%clk 0:00:18]} 45... h5
{[%clk 0:00:03.2]} 46. Kf2 {[%clk 0:00:17]} 46... Rc8 {[%clk 0:00:03.7]} 47. Be3
{[%clk 0:00:10.9]} 47... Rc2+ {[%clk 0:00:04.1]} 48. Ke1 {[%clk 0:00:10.9]}
48... Rxh2 {[%clk 0:00:02.9]} 49. Rg8 {[%clk 0:00:11]} 49... Ra2 {[%clk
0:00:03]} 50. Bc5 {[%clk 0:00:08.7]} 50... Kf7 {[%clk 0:00:02.2]} 51. Rh8 {[%clk
0:00:08.3]} 51... Ra6 {[%clk 0:00:02.2]} 52. Rxh5 {[%clk 0:00:06.8]} 52... Ra5
{[%clk 0:00:02.8]} 53. Be3 {[%clk 0:00:06.6]} 53... Ra1+ {[%clk 0:00:02.4]} 54.
Kd2 {[%clk 0:00:06.6]} 54... Ra2+ {[%clk 0:00:03.3]} 55. Kc3 {[%clk 0:00:06.3]}
55... Ra3+ {[%clk 0:00:03.5]} 56. Kd2 {[%clk 0:00:05.5]} 56... Rd3+ {[%clk
0:00:03.2]} 57. Ke2 {[%clk 0:00:05.5]} 57... Ra3 {[%clk 0:00:03.9]} 58. Rh7+
{[%clk 0:00:04.9]} 58... Ke6 {[%clk 0:00:04.1]} 59. Rh8 {[%clk 0:00:04.8]} 59...
Ra2+ {[%clk 0:00:03.9]} 60. Ke1 {[%clk 0:00:04.1]} 60... Kd5 {[%clk 0:00:02.1]}
61. Bd2 {[%clk 0:00:03.3]} 61... Ke6 {[%clk 0:00:02.2]} 62. Be3 {[%clk
0:00:03.1]} 62... Kd7 {[%clk 0:00:02]} 63. Rh7+ {[%clk 0:00:02.8]} 63... Kc6
{[%clk 0:00:02.4]} 64. Rg7 {[%clk 0:00:03.1]} 64... Kd6 {[%clk 0:00:02.8]} 65.
Bf4+ {[%clk 0:00:03.1]} 65... Kd5 {[%clk 0:00:02.8]} 66. Bb8 {[%clk 0:00:02.8]}
66... Ra1+ {[%clk 0:00:03]} 67. Kd2 {[%clk 0:00:02.1]} 67... Kc4 {[%clk
0:00:03]} 68. Rc7+ {[%clk 0:00:02]} 68... Kd5 {[%clk 0:00:02.7]} 69. Rd7+ {[%clk
0:00:02.2]} 69... Ke6 {[%clk 0:00:02.8]} 70. Rd8 {[%clk 0:00:02.3]} 70... Ra2+
{[%clk 0:00:03]} 71. Ke3 {[%clk 0:00:02.4]} 71... Kf7 {[%clk 0:00:03.9]} 72. Kf4
{[%clk 0:00:02.5]} 72... Kf6 {[%clk 0:00:04.5]} 73. Rd6+ {[%clk 0:00:02.7]}
73... Ke7 {[%clk 0:00:04.8]} 74. Rb6 {[%clk 0:00:03.3]} 74... Ra5 {[%clk
0:00:05.1]} 75. g4 {[%clk 0:00:03.5]} 75... Kf7 {[%clk 0:00:04.7]} 76. gxf5
{[%clk 0:00:03.5]} 76... Bxf5 {[%clk 0:00:05.6]} 77. Kg5 {[%clk 0:00:03.2]}
77... Be6+ {[%clk 0:00:05.7]} 78. Kf4 {[%clk 0:00:02.1]} 78... Ke8 {[%clk
0:00:06.2]} 79. Ke4 {[%clk 0:00:02.3]} 79... Kd7 {[%clk 0:00:06.6]} 80. Kd4
{[%clk 0:00:02.7]} 80... Ra4+ {[%clk 0:00:06.8]} 81. Ke3 {[%clk 0:00:02.7]}
81... Ra3+ {[%clk 0:00:06.9]} 82. Kd4 {[%clk 0:00:03.1]} 82... Ra4+ {[%clk
0:00:06.9]} 83. Ke5 {[%clk 0:00:03.4]} 83... Bh3 {[%clk 0:00:07.2]} 84. Kf6
{[%clk 0:00:03.3]} 84... Bg2 {[%clk 0:00:07.7]} 85. Ke5 {[%clk 0:00:03.4]} 85...
Bc6 {[%clk 0:00:08]} 86. Kf6 {[%clk 0:00:03.6]} 86... Ra5 {[%clk 0:00:08.4]} 87.
Kg6 {[%clk 0:00:03.3]} 87... Ra2 {[%clk 0:00:07.3]} 88. Kf6 {[%clk 0:00:03.4]}
88... Rg2 {[%clk 0:00:07.9]} 89. Ke5 {[%clk 0:00:03.3]} 89... Rg8 {[%clk
0:00:08.4]} 90. Kd4 {[%clk 0:00:03.3]} 90... Rg4+ {[%clk 0:00:08.7]} 91. Ke5
{[%clk 0:00:03.2]} 91... Ba8 {[%clk 0:00:09]} 92. Kf6 {[%clk 0:00:02.1]} 92...
Re4 {[%clk 0:00:09.2]} 93. Kf5 {[%clk 0:00:02.1]} 93... Re1 {[%clk 0:00:09.1]}
94. Kf6 {[%clk 0:00:02.1]} 94... Rf1+ {[%clk 0:00:09.5]} 95. Ke5 {[%clk
0:00:02.2]} 95... Re1+ {[%clk 0:00:08.4]} 96. Kf6 {[%clk 0:00:02.5]} 96... Rc1
{[%clk 0:00:09]} 97. Ke5 {[%clk 0:00:02.3]} 97... Rc8 {[%clk 0:00:09.9]} 98. Kf6
{[%clk 0:00:02.2]} 98... Re8 {[%clk 0:00:10.3]} 99. Kf7 {[%clk 0:00:02]} 99...
Bd5+ {[%clk 0:00:10.4]} 100. Kf6 {[%clk 0:00:02]} 100... Re1 {[%clk 0:00:11]}
101. Kf5 {[%clk 0:00:02.2]} 101... Bc6 {[%clk 0:00:11.1]} 102. Kf6 {[%clk
0:00:02.2]} 102... Ba8 {[%clk 0:00:11.3]} 103. Kf5 {[%clk 0:00:02.1]} 103... Rh1
{[%clk 0:00:12.1]} 104. Ke5 {[%clk 0:00:01.8]} 104... Rh5+ {[%clk 0:00:12.5]}
105. Kf4 {[%clk 0:00:01.7]} 105... Rh4+ {[%clk 0:00:12.8]} 106. Ke5 {[%clk
0:00:01.8]} 106... Kc8 {[%clk 0:00:12.1]} 107. Kf5 {[%clk 0:00:01.1]} 107... Rh8
{[%clk 0:00:12.4]} 108. Kg5 {[%clk 0:00:01.4]} 108... Rf8 {[%clk 0:00:13.3]}
109. Kg6 {[%clk 0:00:01.6]} 109... Re8 {[%clk 0:00:14.2]} 110. Kg7 {[%clk
0:00:02.2]} 110... Re1 {[%clk 0:00:14.9]} 111. Kf7 {[%clk 0:00:02.7]} 111... Rg1
{[%clk 0:00:15.8]} 112. Kf6 {[%clk 0:00:03.3]} 112... Rf1+ {[%clk 0:00:16.7]}
113. Kg5 {[%clk 0:00:03.2]} 113... Re1 {[%clk 0:00:17.6]} 114. Kf5 {[%clk
0:00:03.4]} 114... Rf1+ {[%clk 0:00:18.1]} 115. Ke5 {[%clk 0:00:03.5]} 115...
Rh1 {[%clk 0:00:18.8]} 116. Kd6 {[%clk 0:00:03.9]} 116... Rh6+ {[%clk
0:00:18.6]} 117. Kc5 {[%clk 0:00:03.4]} 117... Rh5+ {[%clk 0:00:19.3]} 118. Kd6
{[%clk 0:00:03.4]} 118... Rh1 {[%clk 0:00:19.8]} 119. Kc5 {[%clk 0:00:03.7]}
119... Rc1+ {[%clk 0:00:20]} 120. Kd4 {[%clk 0:00:03.8]} 120... Rh1 {[%clk
0:00:19.8]} 121. Ke5 {[%clk 0:00:04.2]} 121... Rh7 {[%clk 0:00:20.5]} 122. Kd6
{[%clk 0:00:04.2]} 122... Bh1 {[%clk 0:00:19.7]} 123. Kc5 {[%clk 0:00:04.3]}
123... Rh5+ {[%clk 0:00:19.9]} 124. Kd4 {[%clk 0:00:04.5]} 124... Rh4+ {[%clk
0:00:20.2]} 125. Kc5 {[%clk 0:00:04.9]} 125... Rh2 {[%clk 0:00:20]} 126. Kd4
{[%clk 0:00:05.1]} 126... Rc2 {[%clk 0:00:19.9]} 1/2-1/2

[Event "Late-Titled-Tuesday-Blitz-September-26-2023"]
[Site "Chess.com"]
[Date "2023.09.26"]
[Round "2"]
[White "mitrabhaa"]
[Black "Chessdreamer2020"]
[Result "1-0"]
[WhiteElo "2834"]
[BlackElo "2536"]
[TimeControl "180+1"]
[EndTime "14:13:01 PDT"]
[Termination "mitrabhaa won by resignation"]

1. d4 {[%clk 0:03:00.4]} 1... d6 {[%clk 0:02:59.5]} 2. e4 {[%clk 0:02:59.3]}
2... Nf6 {[%clk 0:02:59.2]} 3. Nc3 {[%clk 0:02:59.2]} 3... c6 {[%clk 0:02:59.5]}
4. Be3 {[%clk 0:02:59.1]} 4... e5 {[%clk 0:02:55.8]} 5. dxe5 {[%clk 0:02:58.4]}
5... dxe5 {[%clk 0:02:55.4]} 6. Qxd8+ {[%clk 0:02:58.6]} 6... Kxd8 {[%clk
0:02:56.2]} 7. Nf3 {[%clk 0:02:58.7]} 7... Bd6 {[%clk 0:02:55.2]} 8. O-O-O
{[%clk 0:02:54.5]} 8... Ke7 {[%clk 0:02:53.5]} 9. Bc4 {[%clk 0:02:53.9]} 9...
Rf8 {[%clk 0:02:29.7]} 10. Ng5 {[%clk 0:02:45.7]} 10... Be6 {[%clk 0:02:09]} 11.
Bxe6 {[%clk 0:02:30.7]} 11... fxe6 {[%clk 0:02:09.9]} 12. Rxd6 {[%clk
0:02:28.1]} 12... Kxd6 {[%clk 0:02:03.8]} 13. Rd1+ {[%clk 0:02:26.6]} 13... Ke7
{[%clk 0:02:00.1]} 14. Bc5+ {[%clk 0:02:26.5]} 14... Ke8 {[%clk 0:01:59.9]} 15.
Bxf8 {[%clk 0:02:26.4]} 15... Kxf8 {[%clk 0:02:00.3]} 16. Nxe6+ {[%clk
0:02:26.4]} 16... Ke7 {[%clk 0:01:59.7]} 17. Nc7 {[%clk 0:02:27.3]} 1-0